fUST/lending_fUST_20240912
["ID","MTS","AMOUNT","RATE_DAILY","PERIOD"]
[337792710,1726121466789,-500.0,0.00017534,2]
[337792711,1726121466798,-488.75707851,0.00017534,2]
[337792712,1726121466807,-1666.86,0.00017534,2]
[337792713,1726121466818,-763.48,0.00017534,2]
[337792714,1726121466828,-1073.64,0.00017534,2]
[337792715,1726121466841,-618.35,0.00017534,2]
[337792716,1726121466852,-500.0,0.00017534,2]
[337792717,1726121466862,-643.74,0.00017534,2]
[337792718,1726121466873,-1264.64,0.00017534,2]
[337792719,1726121466884,-500.0,0.00017534,2]
[337792720,1726121466895,-285.38494507,0.00017534,2]
[337792721,1726121466906,-500.0,0.00017534,2]
[337792722,1726121466919,-500.0,0.00017534,2]
[337792723,1726121466930,-151.0,0.00017534,2]
[337792724,1726121466943,-457.03317124,0.00017534,2]
[337792725,1726121468100,-464.88682876,0.00017534,2]
[337792726,1726121468112,-500.0,0.00017534,2]
[337792727,1726121468122,-500.0,0.00017534,2]
[337792728,1726121468132,-500.0,0.00017534,2]
[337792729,1726121468142,-1429.74,0.00017534,2]
[337792730,1726121468152,-500.0,0.00017534,2]
[337792731,1726121468162,-1591.02859009,0.00017534,2]
[337792732,1726121468625,-500.0,0.00016438,2]
[337792733,1726121468635,-130.57220221,0.00016438,2]
[337792734,1726121468647,-461.76582893,0.00016438,2]
[337792735,1726121468662,-500.0,0.00016712,2]
[337792736,1726121468673,-500.0,0.00016986,2]
[337792737,1726121468683,-500.0,0.0001726,2]
[337792738,1726121468693,-171.37140991,0.00017534,2]
[337792739,1726121468703,-1113.12,0.00017534,2]
[337792740,1726121468713,-500.0,0.00017534,2]
[337792741,1726121468723,-500.0,0.00017534,2]
[337792742,1726121468733,-500.0,0.00017534,2]
[337792743,1726121468744,-500.0,0.00017534,2]
[337792744,1726121468754,-500.0,0.00017534,2]
[337792745,1726121468764,-1471.83091688,0.00017534,2]
[337792746,1726121468777,-979.55908312,0.00017534,2]
[337792747,1726121468787,-706.19,0.00017534,2]
[337792748,1726121468797,-500.0,0.00017534,2]
[337792749,1726121468808,-1932.79,0.00017534,2]
[337792750,1726121468818,-309.6999457,0.00017534,2]
[337792751,1726121468832,-1511.6200543,0.00017534,2]
[337792752,1726121468842,-500.0,0.00017534,2]
[337792753,1726121468852,-500.0,0.00017534,2]
[337792754,1726121468862,-500.0,0.00017534,2]
[337792755,1726121468876,-500.0,0.00017534,2]
[337792756,1726121468886,-500.0,0.00017534,2]
[337792757,1726121468896,-500.0,0.00017534,2]
[337792758,1726121468906,-500.0,0.00017534,2]
[337792759,1726121468918,-500.0,0.00017534,2]
[337792760,1726121468928,-1955.09,0.00017534,2]
[337792761,1726121468939,-601.79,0.00017534,2]
[337792762,1726121468950,-500.0,0.00017534,2]
[337792763,1726121468960,-500.0,0.00017534,2]
[337792764,1726121468971,-873.72,0.00017534,2]
[337792765,1726121468981,-500.0,0.00017534,2]
[337792766,1726121468991,-500.22,0.00017534,2]
[337792767,1726121469000,-924.92,0.00017534,2]
[337792768,1726121469010,-500.0,0.00017534,2]
[337792769,1726121469021,-500.0,0.00017534,2]
[337792770,1726121469031,-500.0,0.00017534,2]
[337792771,1726121469043,-581.29,0.00017534,2]
[337792772,1726121469053,-824.65,0.00017534,2]
[337792773,1726121469063,-408.48712315,0.00017534,2]
[337792774,1726121469073,-1398.07,0.00017534,2]
[337792775,1726121469083,-310.74914165,0.00017534,2]
[337792776,1726121469094,-500.0,0.00017534,2]
[337792777,1726121469104,-151.0,0.00017534,2]
[337792778,1726121469114,-1082.88,0.00017534,2]
[337792779,1726121469124,-151.0,0.00017534,2]
[337792780,1726121469135,-500.0,0.00017534,2]
[337792781,1726121469146,-151.0,0.00017534,2]
[337792782,1726121469156,-500.0,0.00017534,2]
[337792783,1726121469166,-29.00571126,0.00017534,2]
[337792784,1726121469180,-470.99428874,0.00017534,2]
[337792785,1726121469190,-500.0,0.00017534,2]
[337792786,1726121469200,-589.91,0.00017534,2]
[337792787,1726121469210,-543.26,0.00017534,2]
[337792788,1726121469221,-682.96,0.00017534,2]
[337792789,1726121469232,-822.97,0.00017534,2]
[337792790,1726121469241,-151.0,0.00017534,2]
[337792791,1726121469252,-190.026946,0.00017534,2]
[337792792,1726121469267,-500.0,0.00017534,2]
[337792793,1726121469278,-190.026946,0.00017534,2]
[337792794,1726121469289,-500.0,0.00017534,2]
[337792795,1726121469299,-1315.99,0.00017534,2]
[337792796,1726121469311,-500.0,0.00017534,2]
[337792797,1726121469322,-857.5,0.00017534,2]
[337792798,1726121469336,-500.0,0.00017534,2]
[337792799,1726121469346,-500.0,0.00017534,2]
[337792800,1726121469356,-277.66975681,0.00017534,2]
[337792801,1726121469639,-737.69024319,0.00017534,2]
[337792802,1726121469649,-500.0,0.00017534,2]
[337792803,1726121469658,-500.0,0.00017534,2]
[337792804,1726121469668,-1887.42,0.00017534,2]
[337792805,1726121469678,-500.0,0.00017534,2]
[337792806,1726121469688,-151.0,0.00017534,2]
[337792807,1726121469698,-515.43,0.00017534,2]
[337792808,1726121469708,-500.0,0.00017534,2]
[337792809,1726121469718,-1100.85,0.00017534,2]
[337792810,1726121469729,-500.0,0.00017534,2]
[337792811,1726121469739,-500.0,0.00017534,2]
[337792812,1726121469749,-151.0,0.00017534,2]
[337792813,1726121469759,-791.35,0.00017534,2]
[337792814,1726121469770,-500.0,0.00017534,2]
[337792815,1726121469781,-500.0,0.00017534,2]
[337792816,1726121469791,-500.0,0.00017534,2]
[337792817,1726121469801,-151.0,0.00017534,2]
[337792818,1726121469811,-500.0,0.00017534,2]
[337792819,1726121469821,-500.0,0.00017534,2]
[337792820,1726121469834,-500.0,0.00017534,2]
[337792821,1726121469843,-1107.99,0.00017534,2]
[337792822,1726121469854,-557.23,0.00017534,2]
[337792823,1726121469864,-572.4,0.00017534,2]
[337792824,1726121469879,-505.64,0.00017534,2]
[337792825,1726121469889,-500.0,0.00017534,2]
[337792826,1726121469900,-500.0,0.00017534,2]
[337792827,1726121469911,-690.06,0.00017534,2]
[337792828,1726121469921,-713.71,0.00017534,2]
[337792829,1726121469933,-12389.07,0.00017534,2]
[337792830,1726121469944,-190.935416,0.00017534,2]
[337792831,1726121469955,-621.295171,0.00017534,2]
[337792832,1726121469966,-200.0,0.00017534,2]
[337792833,1726121469975,-500.0,0.00017534,2]
[337792834,1726121469985,-621.295171,0.00017534,2]
[337792835,1726121469996,-737.47,0.00017534,2]
[337792836,1726121470006,-1001.22,0.00017534,2]
[337792837,1726121470019,-500.0,0.00017534,2]
[337792838,1726121470029,-897.4,0.00017534,2]
[337792839,1726121470039,-500.0,0.00017534,2]
[337792840,1726121470050,-500.0,0.00017534,2]
[337792841,1726121470063,-964.2,0.00017534,2]
[337792842,1726121470073,-500.0,0.00017534,2]
[337792843,1726121470085,-1423.16,0.00017534,2]
[337792844,1726121470094,-300.1908624,0.00017534,2]
[337792845,1726121470104,-151.0,0.00017534,2]
[337792846,1726121470115,-151.0,0.00017534,2]
[337792847,1726121470127,-500.0,0.00017534,2]
[337792848,1726121470139,-500.0,0.00017534,2]
[337792849,1726121470150,-1611.83,0.00017534,2]
[337792850,1726121470161,-1050.46,0.00017534,2]
[337792851,1726121470172,-171.3,0.00017534,2]
[337792852,1726121470181,-555.22,0.00017534,2]
[337792853,1726121470191,-500.0,0.00017534,2]
[337792854,1726121470202,-1074.66,0.00017534,2]
[337792855,1726121470212,-1273.64,0.00017534,2]
[337792856,1726121470221,-500.0,0.00017534,2]
[337792857,1726121470231,-500.0,0.00017534,2]
[337792858,1726121470242,-2346.75,0.00017534,2]
[337792859,1726121470252,-500.0,0.00017534,2]
[337792860,1726121470262,-1169.55,0.00017534,2]
[337792861,1726121470272,-151.0,0.00017534,2]
[337792862,1726121470282,-500.0,0.00017534,2]
[337792863,1726121470291,-15953.01,0.00017534,2]
[337792864,1726121470301,-690.09,0.00017534,2]
[337792865,1726121470312,-151.0,0.00017534,2]
[337792866,1726121470322,-1514.14,0.00017534,2]
[337792867,1726121470333,-500.37,0.00017534,2]
[337792868,1726121470343,-500.0,0.00017534,2]
[337792869,1726121470361,-348.1907903,0.00017534,2]
[337792870,1726121470380,-322.6492097,0.00017534,2]
[337792871,1726121470391,-736.21,0.00017534,2]
[337792872,1726121470639,-1043.33,0.00017534,2]
[337792873,1726121470650,-500.0,0.00017534,2]
[337792874,1726121470660,-500.0,0.00017534,2]
[337792875,1726121470670,-582.5,0.00017534,2]
[337792876,1726121470680,-500.0,0.00017534,2]
[337792877,1726121470691,-500.0,0.00017534,2]
[337792878,1726121470702,-1066.92,0.00017534,2]
[337792879,1726121470712,-500.0,0.00017534,2]
[337792880,1726121470722,-1278.69,0.00017534,2]
[337792881,1726121470733,-500.0,0.00017534,2]
[337792882,1726121470744,-515.09531025,0.00017534,2]
[337792883,1726121470756,-500.0,0.00017534,2]
[337792884,1726121470766,-1332.55,0.00017534,2]
[337792885,1726121470777,-500.0,0.00017534,2]
[337792886,1726121470789,-740.32,0.00017534,2]
[337792887,1726121470799,-500.0,0.00017534,2]
[337792888,1726121470810,-886.39,0.00017534,2]
[337792889,1726121470821,-810.42,0.00017534,2]
[337792890,1726121470831,-770.47,0.00017534,2]
[337792891,1726121470841,-500.0,0.00017534,2]
[337792892,1726121470851,-7292.49,0.00017534,2]
[337792893,1726121470861,-412.73206216,0.00017534,2]
[337792894,1726121470874,-499.49205537,0.00017534,2]
[337792895,1726121470883,-1039.3,0.00017534,2]
[337792896,1726121470897,-4148.57,0.00017534,2]
[337792897,1726121470907,-500.0,0.00017534,2]
[337792898,1726121470918,-11633.83,0.00017534,2]
[337792899,1726121470929,-1457.46,0.00017534,2]
[337792900,1726121470939,-500.0,0.00017534,2]
[337792901,1726121470951,-500.0,0.00017534,2]
[337792902,1726121470962,-955.55,0.00017534,2]
[337792903,1726121470973,-500.0,0.00017534,2]
[337792904,1726121470983,-1205.78,0.00017534,2]
[337792905,1726121470993,-500.0,0.00017534,2]
[337792906,1726121471003,-500.0,0.00017534,2]
[337792907,1726121471013,-500.0,0.00017534,2]
[337792908,1726121471023,-697.1,0.00017534,2]
[337792909,1726121471033,-649.86,0.00017534,2]
[337792910,1726121471043,-1365.01,0.00017534,2]
[337792911,1726121471053,-500.0,0.00017534,2]
[337792912,1726121471064,-1265.69,0.00017534,2]
[337792913,1726121471074,-500.0,0.00017534,2]
[337792914,1726121471084,-500.0,0.00017534,2]
[337792915,1726121471095,-516.87,0.00017534,2]
[337792916,1726121471105,-317.32670622,0.00017534,2]
[337792917,1726121471115,-274.65047716,0.00017534,2]
[337792918,1726121471125,-538.76,0.00017534,2]
[337792919,1726121471135,-500.0,0.00017534,2]
[337792920,1726121471145,-500.0,0.00017534,2]
[337792921,1726121471155,-500.0,0.00017534,2]
[337792922,1726121471166,-263.99,0.00017534,2]
[337792923,1726121471176,-535.19,0.00017534,2]
[337792924,1726121471186,-1450.65,0.00017534,2]
[337792925,1726121471196,-1590.58,0.00017534,2]
[337792926,1726121471208,-500.0,0.00017534,2]
[337792927,1726121471219,-504.27,0.00017534,2]
[337792928,1726121471230,-512.75698522,0.00017534,2]
[337792929,1726121471241,-500.0,0.00017534,2]
[337792930,1726121471251,-500.0,0.00017534,2]
[337792931,1726121471260,-500.0,0.00017534,2]
[337792932,1726121471270,-500.0,0.00017573,2]
[337792933,1726121471280,-306.50087477,0.00017573,2]
[337792934,1726121471291,-203.52858684,0.00017573,2]
[337792935,1726121471301,-500.0,0.00017573,2]
[337792936,1726121471311,-500.0,0.00017573,2]
[337792937,1726121471321,-151.0,0.00017798,2]
[337792938,1726121471332,-151.0,0.00017798,2]
[337792939,1726121471342,-151.0,0.00017798,2]
[337792940,1726121471352,-156.25321,0.00017798,2]
[337792941,1726121471362,-156.25321,0.00017798,2]
[337792942,1726121471371,-151.0,0.00017798,2]
[337792943,1726121471383,-523.393542,0.00017798,2]
[337792944,1726121471393,-523.393542,0.00017798,2]
[337792945,1726121471404,-151.0,0.00017798,2]
[337792946,1726121471414,-606.49,0.00017808,2]
[337792947,1726121471425,-527.65895879,0.00017808,2]
[337792948,1726121471435,-500.0,0.00017808,2]
[337792949,1726121471445,-219.31058878,0.00017808,2]
[337792950,1726121471456,-795.02,0.00017808,2]
[337792951,1726121471465,-500.0,0.00017808,2]
[337792952,1726121471475,-614.16,0.00017808,2]
[337792953,1726121471485,-808.63,0.00017808,2]
[337792954,1726121471497,-500.0,0.00017808,2]
[337792955,1726121471508,-1908.5,0.00017808,2]
[337792956,1726121471517,-500.0,0.00017808,2]
[337792957,1726121471527,-500.0,0.00017808,2]
[337792958,1726121471538,-527.38638977,0.00017808,2]
[337792959,1726121471548,-500.0,0.00017808,2]
[337792960,1726121471558,-500.0,0.00017808,2]
[337792961,1726121471569,-417.85233145,0.00017808,2]
[337792962,1726121471579,-552.23,0.00017808,2]
[337792963,1726121471588,-500.0,0.00017808,2]
[337792964,1726121471598,-2120.97,0.00017808,2]
[337792965,1726121471607,-1044.98,0.00017808,2]
[337792966,1726121471617,-500.0,0.00017808,2]
[337792967,1726121471626,-725.95,0.00017808,2]
[337792968,1726121471636,-500.0,0.00017808,2]
[337792969,1726121471646,-500.0,0.00017808,2]
[337792970,1726121471656,-500.0,0.00017808,2]
[337792971,1726121471667,-500.0,0.00017808,2]
[337792972,1726121471678,-500.0,0.00017808,2]
[337792973,1726121471689,-500.0,0.00017808,2]
[337792974,1726121471701,-500.0,0.00017808,2]
[337792975,1726121471713,-503.51463,0.00017808,2]
[337792976,1726121472723,-502.77493087,0.00016438,2]
[337792977,1726121472733,-500.0,0.00016438,2]
[337792978,1726121472743,-500.0,0.00016438,2]
[337792979,1726121472752,-500.0,0.00016438,2]
[337792980,1726121472762,-239.14274782,0.00016712,2]
[337792981,1726121474066,-260.85725218,0.00016712,2]
[337792982,1726121474076,-500.0,0.00016712,2]
[337792983,1726121474087,-500.0,0.00016986,2]
[337792984,1726121474096,-500.0,0.0001726,2]
[337792985,1726121474106,-500.0,0.00017534,2]
[337792986,1726121474116,-794.77537,0.00017808,2]
[337792987,1726121474127,-500.0,0.00017808,2]
[337792988,1726121474137,-332.77156439,0.00017808,2]
[337792989,1726121474147,-500.0,0.00017808,2]
[337792990,1726121474160,-500.0,0.00017808,2]
[337792991,1726121474170,-594.98,0.00017808,2]
[337792992,1726121474180,-500.0,0.00017808,2]
[337792993,1726121474190,-524.27,0.00017808,2]
[337792994,1726121474199,-500.0,0.00017808,2]
[337792995,1726121474209,-500.0,0.00017808,2]
[337792996,1726121474219,-702.73,0.00017808,2]
[337792997,1726121474228,-500.0,0.00017808,2]
[337792998,1726121474238,-556.93,0.00017808,2]
[337792999,1726121474248,-500.0,0.00017808,2]
[337793000,1726121474259,-500.0,0.00017808,2]
[337793001,1726121474268,-500.0,0.00017808,2]
[337793002,1726121474278,-1208.12,0.00017808,2]
[337793003,1726121474288,-500.0,0.00017808,2]
[337793004,1726121474298,-500.0,0.00017808,2]
[337793005,1726121474308,-517.99,0.00017808,2]
[337793006,1726121474317,-500.0,0.00017808,2]
[337793007,1726121474327,-1666.86,0.00017808,2]
[337793008,1726121474338,-763.48,0.00017808,2]
[337793009,1726121474350,-516.09730543,0.00017808,2]
[337793010,1726121474649,-557.54269457,0.00017808,2]
[337793011,1726121474659,-310.66775435,0.00017808,2]
[337793012,1726121474747,190.1875992,0.00015569,2]
[337793013,1726121474795,1131.6866256,0.00015569,2]
[337793014,1726121476905,5000.0,0.00016003,2]
[337793015,1726121482825,5000.0,0.00016003,2]
[337793016,1726121494770,5000.0,0.00016003,2]
[337793017,1726121502706,5000.0,0.00016003,2]
[337793019,1726121511171,5000.0,0.00016003,2]
[337793020,1726121519155,5000.0,0.00016003,2]
[337793021,1726121527654,5000.0,0.00016003,2]
[337793022,1726121535930,4446.35920932,0.00016003,2]
[337793023,1726121543946,250.0,0.000157,2]
[337793024,1726121544013,250.0,0.00015743,2]
[337793025,1726121544212,250.0,0.00015786,2]
[337793026,1726121544459,5000.0,0.00016003,2]
[337793027,1726121544626,250.0,0.00015829,2]
[337793028,1726121544844,250.0,0.00015872,2]
[337793029,1726121545060,250.0,0.00015915,2]
[337793030,1726121545291,250.0,0.00015958,2]
[337793031,1726121545510,250.0,0.00016001,2]
[337793032,1726121559905,3023.04035183,0.00016003,2]
[337793033,1726121680692,24900.0,0.00015307,2]
[337793035,1726121705077,734.396135,0.00015294,2]
[337793036,1726121784906,-250.0,0.00016044,2]
[337793037,1726121784931,-250.0,0.00016087,2]
[337793038,1726121784959,-250.0,0.0001613,2]
[337793039,1726121784984,-250.0,0.00016173,2]
[337793040,1726121785010,-250.0,0.00016217,2]
[337793041,1726121785038,-250.0,0.0001626,2]
[337793042,1726121785065,-250.0,0.00016303,2]
[337793043,1726121785089,-250.0,0.00016346,2]
[337793044,1726121785128,-250.0,0.00016389,2]
[337793045,1726121785157,-150.112233,0.000164,2]
[337793046,1726121785183,-300.0,0.00016424,2]
[337793047,1726121785208,-300.0,0.00016424,2]
[337793048,1726121785231,-24657.634337,0.00016425,2]
[337793049,1726121922858,3000.0,0.00015426,2]
[337793050,1726121935294,250.0,0.00015426,2]
[337793051,1726122097957,250.0,0.00015542,2]
[337793052,1726122098206,250.0,0.00015584,2]
[337793053,1726122098420,250.0,0.00015627,2]
[337793054,1726122098687,250.0,0.0001567,2]
[337793055,1726122102219,250.0,0.00015712,2]
[337793056,1726122102452,250.0,0.00015755,2]
[337793058,1726122102692,250.0,0.00015798,2]
[337793059,1726122103082,250.0,0.0001584,2]
[337793060,1726122103286,250.0,0.00015883,2]
[337793061,1726122103498,250.0,0.00015925,2]
[337793062,1726122103874,250.0,0.00015968,2]
[337793063,1726122123610,1000.0,0.00028,120]
[337793064,1726122161563,1000.0,0.00019,19]
[337793065,1726122214319,367.198068,0.00015288,2]
[337793066,1726122235635,30.301932,0.00015288,2]
[337793067,1726122235672,24869.698068,0.00015288,2]
[337793071,1726122340384,500.0,0.00016,2]
[337793075,1726122519033,1509.26001799,0.00028,120]
[337793076,1726122550971,3000.0,0.00015264,2]
[337793079,1726122559461,-250.0,0.00016011,2]
[337793080,1726122559485,-250.0,0.00016053,2]
[337793081,1726122559513,-500.0,0.00016095,2]
[337793082,1726122559536,-250.0,0.00016096,2]
[337793083,1726122559557,-500.0,0.000161,2]
[337793084,1726122559581,-250.0,0.00016139,2]
[337793085,1726122559602,-250.0,0.00016181,2]
[337793086,1726122559623,-1000.0,0.00016223,2]
[337793087,1726122559644,-250.0,0.00016224,2]
[337793088,1726122559668,-250.0,0.00016266,2]
[337793089,1726122559689,-211.94916938,0.000163,2]
[337793090,1726122559710,-250.0,0.00016309,2]
[337793091,1726122559730,-2618.26057088,0.00016327,2]
[337793092,1726122564746,-1283.20800386,0.00016327,2]
[337793093,1726122564769,-894.32453647,0.00016338,2]
[337793095,1726122578701,-502.0,0.00016223,2]
[337793096,1726122578724,-539.44327433,0.00016338,2]
[337793097,1726122583626,-61.89089028,0.00016338,2]
[337793098,1726122583650,-300.0,0.0001635,2]
[337793099,1726122583675,-300.0,0.00016351,2]
[337793100,1726122583697,-250.0,0.00016352,2]
[337793101,1726122583721,-1684.88502959,0.00016418,2]
[337793114,1726122631989,-9644.04059731,0.00016418,2]
[337793115,1726122632001,-300.0,0.00016422,2]
[337793116,1726122632010,-300.0,0.00016423,2]
[337793117,1726122632021,-500.0,0.00016424,2]
[337793118,1726122632032,-500.0,0.00016424,2]
[337793119,1726122632042,-500.0,0.00016424,2]
[337793120,1726122632053,-500.0,0.00016424,2]
[337793121,1726122632063,-500.0,0.00016424,2]
[337793122,1726122632072,-500.0,0.00016424,2]
[337793123,1726122632083,-500.0,0.00016424,2]
[337793124,1726122632092,-500.0,0.00016424,2]
[337793125,1726122632102,-500.0,0.00016424,2]
[337793126,1726122632113,-500.0,0.00016424,2]
[337793127,1726122632124,-500.0,0.00016424,2]
[337793128,1726122632136,-471.69158941,0.00016424,2]
[337793129,1726122632147,-500.0,0.00016424,2]
[337793130,1726122632158,-516.13678215,0.00016424,2]
[337793131,1726122632168,-500.0,0.00016424,2]
[337793132,1726122632178,-323.19741287,0.00016424,2]
[337793133,1726122632188,-292.0119542,0.00016424,2]
[337793134,1726122632200,-500.0,0.00016424,2]
[337793135,1726122632210,-500.0,0.00016424,2]
[337793136,1726122632221,-300.0,0.00016424,2]
[337793137,1726122632231,-500.0,0.00016424,2]
[337793138,1726122632241,-500.0,0.00016424,2]
[337793139,1726122632253,-500.0,0.00016424,2]
[337793140,1726122632263,-500.0,0.00016424,2]
[337793141,1726122632273,-500.0,0.00016424,2]
[337793142,1726122632283,-71834.1623168,0.00016425,2]
[337793143,1726122632292,-11328.9256269,0.00016428,2]
[337793144,1726122632302,-1439.9243786,0.00016437,2]
[337793145,1726122632311,-500.0,0.00016437,2]
[337793146,1726122632321,-552.54115672,0.00016437,2]
[337793147,1726122632331,-467.90542507,0.00016437,2]
[337793148,1726122632340,-500.0,0.00016438,2]
[337793149,1726122632350,-500.0,0.00016438,2]
[337793150,1726122632359,-500.0,0.00016438,2]
[337793151,1726122632369,-500.0,0.00016438,2]
[337793152,1726122632379,-500.0,0.00016438,2]
[337793153,1726122632388,-500.0,0.00016438,2]
[337793154,1726122632397,-562.31374975,0.00016438,2]
[337793155,1726122632407,-500.0,0.00016438,2]
[337793156,1726122632416,-500.98910372,0.00016438,2]
[337793157,1726122632426,-554.13133632,0.00016438,2]
[337793158,1726122632436,-500.0,0.00016438,2]
[337793159,1726122632445,-500.0,0.00016438,2]
[337793160,1726122632455,-500.0,0.00016438,2]
[337793161,1726122632465,-500.0,0.00016438,2]
[337793162,1726122632474,-520.07688501,0.00016438,2]
[337793163,1726122632484,-500.0,0.00016438,2]
[337793164,1726122632493,-500.0,0.00016438,2]
[337793165,1726122632502,-500.0,0.00016438,2]
[337793166,1726122632513,-501.89407592,0.00016438,2]
[337793167,1726122632523,-500.27058018,0.00016438,2]
[337793168,1726122632532,-500.0,0.00016438,2]
[337793169,1726122632541,-1679.1,0.00016438,2]
[337793170,1726122632551,-500.0,0.00016438,2]
[337793171,1726122632560,-500.0,0.00016438,2]
[337793172,1726122632569,-500.0,0.00016438,2]
[337793173,1726122632579,-501.94627665,0.00016438,2]
[337793174,1726122632588,-503.09004834,0.00016438,2]
[337793175,1726122632601,-500.0,0.00016438,2]
[337793176,1726122632610,-500.0,0.00016438,2]
[337793177,1726122632620,-502.37213431,0.00016438,2]
[337793178,1726122632629,-500.0,0.00016438,2]
[337793179,1726122632640,-500.0,0.00016438,2]
[337793180,1726122632649,-500.0,0.00016438,2]
[337793181,1726122632658,-500.0,0.00016438,2]
[337793182,1726122632667,-500.0,0.00016438,2]
[337793183,1726122632678,-522.23578406,0.00016438,2]
[337793184,1726122632687,-500.99052516,0.00016438,2]
[337793185,1726122632697,-500.0,0.00016438,2]
[337793186,1726122632706,-154.13108945,0.00016438,2]
[337793187,1726122632716,-500.0,0.00016438,2]
[337793188,1726122632725,-500.0,0.00016438,2]
[337793189,1726122632735,-500.0,0.00016438,2]
[337793190,1726122632744,-511.99716043,0.00016438,2]
[337793191,1726122632754,-500.0,0.00016438,2]
[337793192,1726122632763,-500.0,0.00016438,2]
[337793193,1726122632772,-504.95160864,0.00016438,2]
[337793194,1726122632781,-500.0,0.00016438,2]
[337793195,1726122632791,-500.0,0.00016438,2]
[337793196,1726122632799,-500.0,0.00016438,2]
[337793197,1726122632809,-501.56528618,0.00016438,2]
[337793198,1726122632818,-503.72486907,0.00016438,2]
[337793199,1726122632828,-500.0,0.00016438,2]
[337793200,1726122632838,-500.0,0.00016438,2]
[337793201,1726122632847,-500.0,0.00016438,2]
[337793202,1726122632856,-500.0,0.00016438,2]
[337793203,1726122632865,-500.0,0.00016438,2]
[337793204,1726122632874,-500.0,0.00016438,2]
[337793205,1726122632884,-500.0,0.00016438,2]
[337793206,1726122632893,-500.0,0.00016438,2]
[337793207,1726122632902,-500.0,0.00016438,2]
[337793208,1726122632912,-500.0,0.00016438,2]
[337793209,1726122632921,-500.0,0.00016438,2]
[337793210,1726122632930,-500.0,0.00016438,2]
[337793211,1726122632939,-500.0,0.00016438,2]
[337793212,1726122632949,-500.0,0.00016438,2]
[337793213,1726122632958,-500.0,0.00016438,2]
[337793214,1726122632967,-500.0,0.00016438,2]
[337793215,1726122632978,-500.24701416,0.00016438,2]
[337793216,1726122632987,-500.0,0.00016438,2]
[337793217,1726122632997,-500.0,0.00016438,2]
[337793218,1726122633009,-512.71570744,0.00016438,2]
[337793219,1726122633018,-500.0,0.00016438,2]
[337793220,1726122633027,-500.0,0.00016438,2]
[337793221,1726122633039,-500.0,0.00016438,2]
[337793222,1726122633048,-501.31748929,0.00016438,2]
[337793223,1726122633058,-500.0,0.00016438,2]
[337793224,1726122633069,-500.0,0.00016438,2]
[337793225,1726122633078,-500.0,0.00016438,2]
[337793226,1726122633088,-500.0,0.00016438,2]
[337793227,1726122633097,-500.0,0.00016438,2]
[337793228,1726122633107,-500.0,0.00016438,2]
[337793229,1726122633116,-500.0,0.00016438,2]
[337793230,1726122633125,-503.59430299,0.00016438,2]
[337793231,1726122633135,-500.0,0.00016438,2]
[337793232,1726122633145,-500.0,0.00016438,2]
[337793233,1726122633154,-501.35176015,0.00016438,2]